bitfinex/quotes_BTCUSD_20250316
["timestamp","ask_amount","ask_price","bid_price","bid_amount"]
[1742134192209,0.553002,83003.0,83002.0,0.0003384]
[1742134192634,0.56080931,83003.0,83002.0,0.0003384]
[1742134193789,0.70032931,83003.0,83002.0,0.0003384]
[1742134193939,0.30780731,83003.0,83002.0,0.0003384]
[1742134194162,0.31080731,83003.0,83002.0,0.0003384]
[1742134194362,0.31280731,83003.0,83002.0,0.0003384]
[1742134194586,0.31280731,83003.0,83002.0,0.0123854]
[1742134194916,0.01280731,83003.0,83002.0,0.0123854]
[1742134195063,0.00980731,83003.0,83002.0,0.0123854]
[1742134195245,0.3,83014.0,83009.0,0.012046]
[1742134196053,0.3,83014.0,83010.0,0.240934]
[1742134196255,0.00757297,83013.0,83010.0,0.240934]
[1742134197480,0.00757297,83013.0,83010.0,0.25298]
[1742134198344,0.00757297,83013.0,83011.0,0.24093]
[1742134199093,0.00757297,83013.0,83009.0,0.2493652]
[1742134200045,0.24849997,83013.0,83009.0,0.0003382]
[1742134200249,0.012046,83011.0,83009.0,0.0003382]
[1742134200452,0.3,83010.0,83009.0,0.0003382]
[1742134200822,0.31961273,83010.0,83009.0,0.0003382]
[1742134204093,0.43319798,83010.0,83009.0,0.0003382]
[1742134204887,0.31961273,83010.0,83009.0,0.0003382]
[1742134205555,0.32361273,83010.0,83009.0,0.0003382]
[1742134207595,0.240974,82997.0,82992.0,0.2303398]
[1742134207742,0.240974,82997.0,82992.0,0.23046401]
[1742134207951,0.00754081,82996.0,82993.0,0.240982]
[1742134208145,0.012048,83000.0,82995.0,0.240976]
[1742134208345,0.3,83002.0,82996.0,0.240973]
[1742134208535,0.3,83002.0,82998.0,0.240967]
[1742134208734,0.3,83002.0,82998.0,0.253015]
[1742134209792,0.3,83002.0,82999.0,0.240965]
[1742134209993,0.253006,83002.0,82997.0,0.253018]
[1742134210812,0.253006,83002.0,82998.0,0.240968]
[1742134211013,0.25301,83001.0,82998.0,0.001]
[1742134211265,0.25301,83001.0,82996.0,0.012048]
[1742134211622,0.253014,82999.0,82997.0,0.001]
[1742134211832,0.240971,82998.0,82993.0,0.240982]
[1742134211985,0.240974,82997.0,82992.0,0.25315821]
[1742134212192,0.26059838,82997.0,82992.0,0.24110921]
[1742134212447,0.012048,82996.0,82992.0,0.24110921]
[1742134212797,0.2485542,82995.0,82992.0,0.00012421]
[1742134212996,0.2606022,82995.0,82992.0,0.00012421]
[1742134213262,0.253031,82994.0,82992.0,0.00012421]
[1742134213712,0.01961762,82993.0,82992.0,0.00012421]
[1742134214031,0.00756862,82993.0,82992.0,0.00012421]
[1742134214465,0.01695751,82995.0,82992.0,0.01317321]
[1742134214674,0.3,82996.0,82995.0,0.253026]
[1742134214878,0.3,82996.0,82995.0,0.334926]
[1742134215103,0.3,83001.0,82997.0,0.24097]
[1742134215307,0.00760445,83000.0,82997.0,0.24097]
[1742134215550,0.02416795,83000.0,82997.0,0.24097]
[1742134215752,0.00760445,83000.0,82997.0,0.24097]
[1742134216418,0.00760445,83000.0,82996.0,0.012048]
[1742134216611,0.00760445,83000.0,82997.0,0.240971]
[1742134216812,0.00760445,83000.0,82995.0,0.334926]
[1742134217491,0.00760445,83000.0,82996.0,0.240974]
[1742134218600,0.3,82999.0,82995.0,0.334926]
[1742134218820,0.30760327,82999.0,82995.0,0.335926]
[1742134219005,0.30760327,82999.0,82996.0,0.240974]
[1742134219144,0.30760327,82999.0,82996.0,0.240973]
[1742134219354,0.30760327,82999.0,82998.0,0.059348]
[1742134219860,0.00760327,82999.0,82998.0,0.059348]
[1742134220100,0.02649118,82999.0,82998.0,0.059348]
[1742134220302,0.01888791,82999.0,82998.0,0.059348]
[1742134221487,0.01888791,82999.0,82998.0,0.060348]
[1742134223110,0.240944,83007.0,83001.0,0.012048]
[1742134223356,0.25727588,83007.0,83001.0,0.012048]
[1742134223562,0.01633188,83007.0,83004.0,0.240951]
[1742134223991,0.0003384,83013.0,83012.0,0.012046]
[1742134224323,0.0003384,83013.0,83012.0,0.010046]
[1742134224522,0.0003384,83013.0,83012.0,0.057346]
[1742134224836,0.0003384,83013.0,83012.0,0.13945062]
[1742134225366,0.0013384,83013.0,83012.0,0.13945062]
[1742134225558,0.0003384,83013.0,83012.0,0.13945062]
[1742134226076,0.0003384,83013.0,83012.0,0.14045062]
[1742134226867,0.0033384,83013.0,83012.0,0.14045062]
[1742134227274,0.0003384,83013.0,83012.0,0.14045062]
[1742134227473,0.0003384,83013.0,83012.0,0.15499147]
[1742134227637,0.0003384,83013.0,83012.0,0.15699147]
[1742134228780,0.0003384,83013.0,83012.0,0.15599147]
[1742134229053,0.0003384,83013.0,83012.0,0.15399147]
[1742134229256,0.0003384,83013.0,83012.0,0.16099147]
[1742134230573,0.00248,83015.0,83012.0,0.16099147]
[1742134230574,4e-07,83015.0,83014.0,0.012046]
[1742134230730,4e-07,83015.0,83014.0,0.15869115]
[1742134230926,7e-07,83019.0,83018.0,0.39839685]
[1742134231899,7e-07,83019.0,83018.0,0.39739685]
[1742134232616,0.0010007,83019.0,83018.0,0.40239685]
[1742134233880,0.0010007,83019.0,83018.0,0.40839685]
[1742134234022,7e-07,83019.0,83018.0,0.40339685]
[1742134234448,7e-07,83019.0,83018.0,0.54883685]
[1742134235712,7e-07,83019.0,83018.0,0.94289927]
[1742134235912,7e-07,83019.0,83018.0,0.78891842]
[1742134236110,7e-07,83019.0,83018.0,0.70731842]
[1742134236612,0.01888296,83019.0,83018.0,0.70731842]
[1742134236787,7e-07,83019.0,83018.0,0.70731842]
[1742134237031,7e-07,83019.0,83018.0,0.70131842]
[1742134237210,7e-07,83019.0,83018.0,0.69831842]
[1742134237413,7e-07,83019.0,83018.0,0.44636242]
[1742134237597,0.01227467,83019.0,83018.0,0.44936242]
[1742134237792,7e-07,83019.0,83018.0,0.46140742]
[1742134238421,7e-07,83019.0,83018.0,0.39406242]
[1742134238770,0.2529537,83019.0,83018.0,0.39606242]
[1742134238952,7e-07,83019.0,83018.0,0.39906242]
[1742134239152,0.00343697,83019.0,83018.0,0.39906242]
[1742134239453,0.28411211,83019.0,83018.0,0.002]
[1742134239603,0.240954,83004.0,82998.0,0.2705054]
[1742134239814,0.012047,83008.0,83001.0,0.240958]
[1742134240310,0.252989,83008.0,83002.0,0.240955]
[1742134240510,0.24973157,83007.0,83002.0,0.240955]
[1742134240714,0.25317327,83007.0,83002.0,0.240955]
[1742134240927,0.25317327,83007.0,82991.0,0.241788]
[1742134240928,0.240974,82997.0,82991.0,0.012849]
[1742134241341,0.253033,82993.0,82991.0,0.0008]
[1742134241544,0.553033,82993.0,82991.0,0.0008]
[1742134241743,0.55652692,82993.0,82991.0,0.0008]
[1742134242742,0.56534546,82993.0,82991.0,0.0008]
[1742134243538,0.56534546,82993.0,82992.0,0.0021692]
[1742134243986,0.70478546,82993.0,82992.0,0.0001692]
[1742134244303,0.82436049,82993.0,82992.0,0.0001692]
[1742134244536,0.70478546,82993.0,82992.0,0.0001692]
[1742134245143,0.72367846,82993.0,82992.0,0.0001692]
[1742134245476,0.72467846,82993.0,82992.0,0.0001692]
[1742134246358,0.72367846,82993.0,82992.0,0.0001692]
[1742134246786,0.72667846,82993.0,82992.0,0.0001692]
[1742134246989,0.72767846,82993.0,82992.0,0.0001692]
[1742134247223,0.84625349,82993.0,82992.0,0.0001692]
[1742134247643,0.84825349,82993.0,82992.0,0.0001692]
[1742134248084,0.84525349,82993.0,82992.0,0.0001692]
[1742134248480,0.84825349,82993.0,82992.0,0.0001692]
[1742134248933,0.58923846,82993.0,82992.0,0.0001692]
[1742134249134,0.72867846,82993.0,82992.0,0.0001692]
[1742134249309,0.70978546,82993.0,82992.0,0.0001692]
[1742134251343,0.57034546,82993.0,82992.0,0.0001692]
[1742134251796,0.57034546,82993.0,82982.0,0.253064]
[1742134251797,0.25305,82988.0,82982.0,0.2323718]
[1742134251980,0.3,82987.0,82982.0,0.2323718]
[1742134252210,0.30950821,82987.0,82982.0,0.2323718]
[1742134253008,0.3,82985.0,82982.0,0.2323718]
[1742134253211,0.3,82982.0,82981.0,0.0003384]
[1742134253444,0.31205,82982.0,82981.0,0.0003384]
[1742134253629,0.3215436,82982.0,82981.0,0.0003384]
[1742134254241,0.00733956,82982.0,82981.0,0.0003384]
[1742134254851,0.01938956,82982.0,82981.0,0.0023384]
[1742134255421,0.01938956,82982.0,82981.0,0.0043384]
[1742134255620,0.03828269,82982.0,82981.0,0.0043384]
[1742134255817,0.03828269,82982.0,82981.0,0.0023384]
[1742134256352,0.03828269,82982.0,82981.0,0.0033384]
[1742134256582,0.04204998,82982.0,82981.0,0.0013384]
[1742134257105,0.02999998,82982.0,82981.0,0.0023384]
[1742134257279,0.02999998,82982.0,82981.0,0.0003384]
[1742134257482,0.27101598,82982.0,82981.0,0.0003384]
[1742134257824,0.28306598,82982.0,82981.0,0.0003384]
[1742134259051,0.253081,82977.0,82971.0,0.2464518]
[1742134259256,0.253095,82973.0,82968.0,0.0477]
[1742134259451,0.0110686,82976.0,82965.0,0.012053]
[1742134259738,0.012051,82974.0,82968.0,0.012052]
[1742134259916,0.03094435,82974.0,82968.0,0.012052]
[1742134260530,0.03094435,82974.0,82965.0,0.012053]
[1742134260531,0.012052,82972.0,82971.0,0.001]
[1742134261351,0.25993335,82974.0,82971.0,0.001]
[1742134261718,0.27198435,82974.0,82971.0,0.001]
[1742134262090,0.253096,82973.0,82968.0,0.242054]
[1742134262317,0.253098,82972.0,82968.0,0.001]
[1742134262520,0.253101,82971.0,82968.0,0.002]
[1742134262726,0.012052,82969.0,82968.0,0.002]
[1742134262931,0.012052,82969.0,82968.0,0.001]
[1742134263148,0.01931107,82969.0,82968.0,0.001]
[1742134263347,0.00725907,82969.0,82968.0,0.002]
[1742134263760,0.241037,82975.0,82968.0,0.002]
[1742134263761,0.012051,82977.0,82968.0,0.254107]
[1742134263976,0.00728786,82969.0,82968.0,0.330407]
[1742134264399,0.3,82984.0,82980.0,0.24102]
[1742134264758,0.3,82984.0,82949.0,0.1256]
[1742134264759,0.012053,82965.0,82949.0,0.1256]
[1742134264919,0.553118,82966.0,82957.0,0.012054]
[1742134265167,0.095053,82965.0,82951.0,0.0008]
[1742134266190,0.095053,82965.0,82964.0,0.00075271]
[1742134266616,0.40233795,82965.0,82964.0,0.00075271]
[1742134267244,0.40833795,82965.0,82964.0,0.00075271]
[1742134267410,0.40833795,82965.0,82951.0,0.0008]
[1742134267411,0.253158,82952.0,82951.0,0.0008]
[1742134267610,0.012056,82943.0,82934.0,0.2414906]
[1742134267820,0.312056,82946.0,82943.0,0.241128]
[1742134267821,0.3,82946.0,82943.0,0.241128]
[1742134268023,0.3,82946.0,82944.0,0.241124]
[1742134268437,0.01593669,82949.0,82945.0,0.241121]
[1742134268641,0.3,82952.0,82950.0,0.241108]
[1742134268842,0.76556,82956.0,82952.0,0.012055]
[1742134269043,0.76556,82956.0,82954.0,0.012054]
[1742134269044,0.3,82955.0,82954.0,0.012054]
[1742134269381,0.76556,82956.0,82955.0,0.253148]
[1742134269512,0.76556,82956.0,82951.0,0.012055]
[1742134269513,0.012055,82953.0,82943.0,0.012056]
[1742134269713,0.253156,82953.0,82947.0,0.25317]
[1742134269941,0.253156,82953.0,82951.0,0.001]
[1742134270141,0.012055,82952.0,82951.0,0.001]
[1742134270520,0.241106,82951.0,82945.0,0.012056]
[1742134270718,0.253161,82951.0,82945.0,0.012056]
[1742134270958,0.253161,82951.0,82948.0,0.002]
[1742134271375,0.253166,82950.0,82945.0,0.241121]
[1742134271744,0.253166,82950.0,82940.0,0.330493]
[1742134271745,0.241135,82941.0,82935.0,0.47136242]
[1742134272143,0.241114,82948.0,82935.0,0.47136242]
[1742134272144,0.012055,82947.0,82941.0,0.253189]
[1742134272504,0.253174,82947.0,82941.0,0.253189]
[1742134272702,0.253174,82947.0,82945.0,0.002]
[1742134273000,0.253174,82947.0,82942.0,0.24113]
[1742134273202,0.253178,82946.0,82939.0,0.28956221]
[1742134273407,0.253174,82947.0,82939.0,0.06048121]
[1742134273813,0.253174,82947.0,82941.0,0.241133]
[1742134273977,0.241122,82946.0,82941.0,0.241133]
[1742134274172,0.253178,82946.0,82941.0,0.241133]
[1742134274545,0.253174,82947.0,82942.0,0.253186]
[1742134274680,0.241112,82949.0,82944.0,0.012056]
[1742134274928,0.3,82952.0,82951.0,0.012055]
[1742134275141,0.3,82952.0,82950.0,0.253161]
[1742134275340,0.541105,82952.0,82947.0,0.241117]
[1742134275543,0.3,82952.0,82948.0,0.241112]
[1742134275756,0.3,82952.0,82947.0,0.012055]
[1742134275757,0.76556,82956.0,82953.0,0.012055]
[1742134275955,0.76556,82956.0,82955.0,0.057754]
[1742134277118,0.76556,82956.0,82955.0,0.0457]
[1742134277292,0.76556,82956.0,82955.0,0.057754]
[1742134277456,0.77650904,82956.0,82955.0,0.058754]
[1742134278264,0.77650904,82956.0,82955.0,0.0477]
[1742134278458,0.77650904,82956.0,82955.0,0.002]
[1742134278912,0.77650904,82956.0,82955.0,0.014054]
[1742134279349,0.01094904,82956.0,82955.0,0.014054]
[1742134279542,0.312053,82966.0,82958.0,0.012054]
[1742134280079,0.3,82963.0,82959.0,0.012054]
[1742134280253,0.241082,82960.0,82956.0,0.241091]
[1742134280410,0.3,82961.0,82956.0,0.241091]
[1742134280632,0.3,82961.0,82957.0,0.241086]
[1742134280828,0.3,82961.0,82958.0,0.253137]
[1742134281028,0.00730013,82960.0,82958.0,0.253137]
[1742134281900,0.3,82963.0,82960.0,0.012054]
[1742134282035,0.01560374,82966.0,82965.0,0.253118]
[1742134282236,0.3,82968.0,82966.0,0.24106]
[1742134282666,0.3,82968.0,82967.0,0.012052]
[1742134282868,0.76568,82969.0,82968.0,0.253108]
[1742134283094,0.012049,82991.0,82973.0,0.253094]
[1742134283309,0.0156211,82981.0,82973.0,0.253094]
[1742134283865,0.012049,82989.0,82973.0,0.253094]
[1742134284477,0.01581076,82984.0,82973.0,0.253094]
[1742134284719,0.02460382,82990.0,82973.0,0.334694]
[1742134284927,0.01552986,82987.0,82973.0,0.336694]
[1742134285590,0.02171195,82974.0,82973.0,0.336694]
[1742134285819,0.02171195,82974.0,82973.0,0.39493485]
[1742134286021,0.02171195,82974.0,82973.0,0.78899727]
[1742134286348,9.5e-07,82974.0,82973.0,0.78505727]
[1742134286554,0.01543991,83003.0,82973.0,0.78505727]
[1742134286555,0.03989648,83003.0,82997.0,0.25302]
[1742134286786,0.3,83002.0,82997.0,0.25302]
[1742134287121,0.012048,82997.0,82992.0,0.240987]
[1742134287472,0.0113511,82998.0,82993.0,0.25303]
[1742134287649,0.0113511,82998.0,82996.0,0.240972]
[1742134287856,0.01176431,82998.0,82996.0,0.012048]
[1742134288058,0.01176431,82998.0,82997.0,0.002]
[1742134288655,0.01176431,82998.0,82997.0,0.001]
[1742134289482,0.01176431,82998.0,82997.0,0.013048]
[1742134289712,0.01176431,82998.0,82997.0,0.012048]
[1742134289966,0.01176431,82998.0,82997.0,0.059648]
[1742134290283,0.00075161,82998.0,82997.0,0.059648]
[1742134290485,0.00075161,82998.0,82997.0,0.06085265]
[1742134290671,0.00075161,82998.0,82997.0,0.059648]
[1742134291318,0.00075161,82998.0,82997.0,0.060648]
[1742134291677,0.00075161,82998.0,82997.0,0.059648]
[1742134292059,0.00075161,82998.0,82997.0,0.062648]
[1742134292678,0.00075161,82998.0,82997.0,0.065648]
[1742134295106,0.00075161,82998.0,82997.0,0.06685265]
[1742134296070,0.00075161,82998.0,82997.0,0.065648]
[1742134298624,0.00075161,82998.0,82997.0,0.06685265]
[1742134298826,0.00075161,82998.0,82997.0,0.21958885]
[1742134300552,0.00075161,82998.0,82997.0,0.205048]
[1742134301816,0.00075161,82998.0,82997.0,0.018048]
[1742134303984,0.01197003,82998.0,82997.0,0.018048]
[1742134304668,0.00075161,82998.0,82997.0,0.018048]
[1742134308714,0.00075161,82998.0,82997.0,0.006]
[1742134309460,0.00075161,82998.0,82997.0,0.018048]
[1742134312462,0.00075161,82998.0,82997.0,0.01925269]
[1742134312681,0.00075161,82998.0,82997.0,0.09585269]
[1742134312883,0.00075161,82998.0,82997.0,0.14415269]
[1742134313097,0.00075161,82998.0,82997.0,0.15869354]
[1742134313735,0.00075161,82998.0,82997.0,0.15569354]
[1742134313977,0.00075161,82998.0,82997.0,0.56607262]
[1742134314135,0.00075161,82998.0,82997.0,0.56486793]
[1742134314346,0.00075161,82998.0,82997.0,0.56886793]
[1742134314542,0.00075161,82998.0,82997.0,0.56486793]
[1742134314769,6.1e-07,82998.0,82997.0,0.56486793]
[1742134315519,0.00100061,82998.0,82997.0,0.56886793]
[1742134315653,0.00100061,82998.0,82997.0,0.56486793]
[1742134316072,0.00100061,82998.0,82997.0,0.57086793]
[1742134316895,0.00100061,82998.0,82997.0,0.55555127]
[1742134317834,0.00100061,82998.0,82997.0,0.69491127]
[1742134319886,0.00133901,82998.0,82997.0,0.69491127]
[1742134326395,0.00133901,82998.0,82997.0,0.61831127]
[1742134326801,0.00133901,82998.0,82997.0,0.57001127]
[1742134327477,0.00133901,82998.0,82997.0,0.41611042]
[1742134327695,0.00133901,82998.0,82997.0,0.55547042]
[1742134328700,0.01303939,82998.0,82997.0,0.55547042]
[1742134329783,0.01303939,82998.0,82997.0,0.57001127]
[1742134331362,0.01303939,82998.0,82997.0,0.57018047]
[1742134332238,0.01303939,82998.0,82997.0,0.41627962]
[1742134333320,0.01203939,82998.0,82997.0,0.40627962]
[1742134333497,0.01203939,82998.0,82997.0,0.41227962]
[1742134333702,0.01203939,82998.0,82997.0,0.41727962]
[1742134340411,0.01203939,82998.0,82997.0,0.65725162]
[1742134340912,0.01203939,82998.0,82997.0,0.65225162]
[1742134341104,0.01203939,82998.0,82997.0,0.0051692]
[1742134341396,0.27236242,82998.0,82997.0,0.0051692]
[1742134341634,0.45278739,82998.0,82997.0,0.0051692]
[1742134342241,0.45278739,82998.0,82997.0,0.0001692]
[1742134342661,0.45278739,82998.0,82997.0,0.0051692]
[1742134342884,0.45278739,82998.0,82997.0,0.0011692]
[1742134343089,0.45278739,82998.0,82997.0,0.0001692]
[1742134343514,0.45378739,82998.0,82997.0,0.0001692]
[1742134343722,0.47267914,82998.0,82997.0,0.0001692]
[1742134344531,0.47367914,82998.0,82997.0,0.0001692]
[1742134344884,0.241024,82979.0,82974.0,0.2434254]
[1742134345079,0.241045,82972.0,82968.0,0.13936]
[1742134345320,0.253097,82972.0,82960.0,0.10843829]
[1742134345475,0.24107,82964.0,82960.0,0.10843829]
[1742134345681,0.253123,82964.0,82960.0,0.10843829]
[1742134345882,0.012053,82961.0,82960.0,0.10843829]
[1742134346079,0.012054,82955.0,82948.0,0.241112]
[1742134346321,0.012054,82955.0,82950.0,0.253161]
[1742134346673,0.00297344,82954.0,82950.0,0.253161]
[1742134347558,0.253158,82952.0,82948.0,0.0004126]
[1742134347818,0.253158,82952.0,82950.0,0.002]
[1742134347987,0.012054,82955.0,82950.0,0.002]
[1742134347988,0.00287082,82951.0,82950.0,0.002]
[1742134348346,0.00980214,82958.0,82950.0,0.002]
[1742134348553,0.00286187,82951.0,82950.0,0.002]
[1742134348755,0.012054,82954.0,82950.0,0.002]
[1742134349007,0.0269645,82954.0,82950.0,0.002]
[1742134349291,0.00811822,82953.0,82948.0,0.0004126]
[1742134349525,0.00811822,82953.0,82950.0,0.003]
[1742134349673,0.00811822,82953.0,82950.0,0.002]
[1742134350004,0.00811822,82953.0,82950.0,0.004]
[1742134350408,0.00811822,82953.0,82950.0,0.002]
[1742134351175,0.00811822,82953.0,82948.0,0.2555796]
[1742134351693,0.00811822,82953.0,82948.0,0.0164676]
[1742134352298,0.0785,82951.0,82948.0,0.0044126]
[1742134352494,0.319606,82951.0,82948.0,0.0044126]
[1742134352705,0.253167,82949.0,82948.0,0.0024126]
[1742134353098,0.56128232,82949.0,82948.0,0.0024126]
[1742134353503,0.56128232,82949.0,82948.0,0.0044126]
[1742134353822,0.56128232,82949.0,82948.0,0.0024126]
[1742134354863,0.30811532,82949.0,82948.0,0.0024126]
[1742134355043,0.00811532,82949.0,82948.0,0.0124676]
[1742134355416,0.0188992,82952.0,82951.0,0.253161]
[1742134355829,1.006343,82966.0,82962.0,0.241073]
[1742134355830,0.55161059,82966.0,82962.0,0.241073]
[1742134356032,0.57885567,82966.0,82955.0,0.012054]
[1742134356237,0.0003384,82958.0,82956.0,0.253144]
[1742134357238,0.0003384,82958.0,82957.0,0.012054]
[1742134357915,0.012054,82955.0,82945.0,0.012056]
[1742134358100,0.012054,82957.0,82948.0,0.0124676]
[1742134358886,0.012054,82957.0,82953.0,0.2411]
[1742134359140,0.012054,82957.0,82952.0,0.012055]
[1742134359855,0.241094,82955.0,82948.0,0.2535806]
[1742134360034,0.02016194,82956.0,82948.0,0.0004126]
[1742134360175,0.0081021,82954.0,82948.0,0.0004126]
[1742134360369,0.00810502,82955.0,82948.0,0.0004126]
[1742134360620,0.00809918,82953.0,82948.0,0.0004126]
[1742134360931,0.0081021,82954.0,82953.0,0.2411]
[1742134361132,0.002,82957.0,82954.0,0.241095]
[1742134361593,0.002,82957.0,82956.0,0.241091]
[1742134362435,0.0003384,82958.0,82957.0,0.012054]
[1742134362974,0.001,82957.0,82952.0,0.241102]
[1742134363469,0.00809329,82956.0,82952.0,0.241102]
[1742134364499,0.24918529,82956.0,82951.0,0.012055]
[1742134365211,0.253158,82952.0,82950.0,0.0001692]
[1742134365416,0.312055,82951.0,82950.0,0.0001692]
[1742134365658,0.451455,82951.0,82950.0,0.0001692]
[1742134366063,0.4595813,82951.0,82950.0,0.0001692]
[1742134366986,0.253209,82935.0,82929.0,0.2326529]
[1742134367300,0.253209,82935.0,82934.0,0.00012421]
[1742134368473,0.241149,82937.0,82934.0,0.00012421]
[1742134368836,0.253206,82937.0,82934.0,0.00012421]
[1742134369218,0.253209,82935.0,82934.0,0.00012421]
[1742134369614,0.253209,82935.0,82934.0,0.00212421]
[1742134370397,0.253209,82935.0,82934.0,0.00012421]
[1742134370616,0.253209,82935.0,82934.0,0.00212421]
[1742134370813,0.253209,82935.0,82934.0,0.00412421]
[1742134371013,0.26131123,82935.0,82934.0,0.00412421]
[1742134371215,0.26131123,82935.0,82934.0,0.00212421]
[1742134371620,0.26131123,82935.0,82934.0,0.00312421]
[1742134372619,0.26131123,82935.0,82934.0,0.00112421]
[1742134373245,0.26131123,82935.0,82934.0,0.00012421]
[1742134373654,0.27046436,82935.0,82934.0,0.00012421]
[1742134374525,0.28936769,82935.0,82934.0,0.00012421]
[1742134374732,0.27731069,82935.0,82934.0,0.00012421]
[1742134374898,0.27831069,82935.0,82934.0,0.00012421]
[1742134375454,0.29036769,82935.0,82934.0,0.00012421]
[1742134375565,0.03715869,82935.0,82934.0,0.01218121]
[1742134375925,0.04921569,82935.0,82934.0,0.00012421]
[1742134376127,0.29036769,82935.0,82934.0,0.00012421]
[1742134376363,0.28936769,82935.0,82934.0,0.00012421]
[1742134376543,0.2936999,82935.0,82934.0,0.00012421]
[1742134376755,0.2926999,82935.0,82934.0,0.00012421]
[1742134377184,0.2926999,82935.0,82934.0,0.00112421]
[1742134377482,0.2926999,82935.0,82934.0,0.00212421]
[1742134377898,0.2926999,82935.0,82934.0,0.00012421]
[1742134378365,0.5926999,82935.0,82934.0,0.00012421]
[1742134379895,0.5936999,82935.0,82934.0,0.00012421]
[1742134380669,0.5956999,82935.0,82934.0,0.00012421]
[1742134381274,0.5926999,82935.0,82934.0,0.00012421]
[1742134381632,0.5946999,82935.0,82934.0,0.00012421]
[1742134382307,1.69309571,82935.0,82934.0,0.00012421]
[1742134382711,1.73392956,82935.0,82934.0,0.00012421]
[1742134382829,1.67760059,82935.0,82934.0,0.00012421]
[1742134383026,1.67960059,82935.0,82934.0,0.00012421]
[1742134383233,1.67760059,82935.0,82934.0,0.00012421]
[1742134383435,0.553225,82930.0,82929.0,0.0001693]
[1742134383770,0.70401531,82930.0,82929.0,0.00029347]
[1742134384955,0.70701531,82930.0,82929.0,0.00029347]
[1742134385594,0.72592163,82930.0,82929.0,0.00029347]
[1742134386163,0.72992163,82930.0,82929.0,0.00029347]
[1742134389055,0.3,82929.0,82928.0,0.25323]
[1742134389255,0.03200687,82930.0,82928.0,0.25323]
[1742134389596,0.00672679,82929.0,82926.0,0.241177]
[1742134389749,0.00672679,82929.0,82927.0,0.241173]
[1742134390279,0.00672679,82929.0,82928.0,0.241173]
[1742134390451,0.00672679,82929.0,82927.0,0.012058]
[1742134390663,0.00672679,82929.0,82927.0,0.253232]
[1742134390871,0.00672679,82929.0,82928.0,0.012058]
[1742134391454,0.00772679,82929.0,82926.0,0.012058]
[1742134391807,0.01146541,82929.0,82927.0,0.241175]
[1742134391993,0.01146541,82929.0,82928.0,0.012058]
[1742134392699,0.01146541,82929.0,82928.0,0.0888273]
[1742134393084,0.001,82929.0,82928.0,0.0888273]
[1742134393278,0.00949173,82935.0,82934.0,0.012057]
[1742134393626,0.00949173,82935.0,82934.0,0.253212]
[1742134393831,0.0003386,82935.0,82934.0,0.253212]
[1742134394035,0.0003386,82935.0,82934.0,0.298612]
[1742134394241,0.0003386,82935.0,82934.0,0.375212]
[1742134394998,0.0003386,82935.0,82934.0,0.675212]
[1742134395205,0.0013386,82935.0,82934.0,0.675212]
[1742134397201,0.0003386,82935.0,82934.0,0.676212]
[1742134397404,0.0003386,82935.0,82934.0,0.675212]
[1742134397804,0.0003386,82935.0,82934.0,0.677212]
[1742134398433,0.0003386,82935.0,82934.0,0.675212]
[1742134399966,0.0003386,82935.0,82934.0,0.678212]
[1742134401398,0.0003386,82951.0,82950.0,0.675164]
[1742134401572,0.0003386,82951.0,82950.0,1.20862642]
[1742134401779,0.0003384,82958.0,82957.0,0.241088]
[1742134401980,0.0003384,82958.0,82957.0,0.67634727]
[1742134402111,0.0003384,82958.0,82957.0,0.675142]
[1742134403563,0.0003384,82958.0,82957.0,0.674142]
[1742134404100,0.0003384,82958.0,82957.0,0.679142]
[1742134404526,0.0013384,82958.0,82957.0,0.682142]
[1742134408329,0.0013384,82958.0,82957.0,0.305542]
[1742134409726,0.0013384,82958.0,82957.0,0.0534]
[1742134409934,0.0013384,82958.0,82957.0,0.005]
[1742134409935,0.0123924,82958.0,82957.0,0.005]
[1742134410153,0.012054,82954.0,82950.0,0.39406242]
[1742134410353,0.253142,82957.0,82950.0,0.64722442]
[1742134410553,0.012055,82952.0,82947.0,0.3]
[1742134410755,0.012055,82949.0,82947.0,0.3]
[1742134411019,0.012055,82952.0,82949.0,0.3]
[1742134411220,0.253164,82950.0,82949.0,0.3]
[1742134411999,0.012055,82947.0,82942.0,0.3]
[1742134412222,0.012055,82947.0,82942.0,0.30012387]
[1742134413074,0.241123,82945.0,82942.0,0.00012387]
[1742134413274,0.241112,82949.0,82943.0,0.012056]
[1742134413496,0.25175854,82951.0,82946.0,0.253176]
[1742134413769,0.01065154,82951.0,82949.0,0.241109]
[1742134413973,0.01065154,82951.0,82950.0,0.012055]
[1742134414217,0.0003384,82958.0,82955.0,0.012054]
[1742134414429,0.0003384,82958.0,82956.0,0.253145]
[1742134415052,0.78036991,82957.0,82956.0,0.252145]
[1742134415913,0.78136991,82957.0,82956.0,0.252145]
[1742134416295,0.76668,82957.0,82956.0,0.252145]
[1742134416823,0.001,82957.0,82956.0,0.552145]
[1742134417007,0.0013384,82957.0,82956.0,0.552145]
[1742134417213,0.0003384,82957.0,82956.0,0.552145]
[1742134417371,0.241114,82948.0,82941.0,0.049]
[1742134417577,0.253163,82951.0,82942.0,0.24125387]
[1742134417783,0.00674136,82948.0,82942.0,0.30012387]
[1742134418208,0.24785536,82948.0,82942.0,0.30012387]
[1742134418440,0.25991036,82948.0,82942.0,0.30012387]
[1742134418619,0.25991036,82948.0,82947.0,0.0041692]
[1742134418832,0.25991036,82948.0,82947.0,0.0051692]
[1742134419031,0.25991036,82948.0,82947.0,0.0011692]
[1742134420015,0.25991036,82948.0,82947.0,0.0001692]
[1742134420528,0.25991036,82948.0,82947.0,0.0021692]
[1742134421251,0.25991036,82948.0,82947.0,0.0041692]
[1742134421480,0.00674136,82948.0,82947.0,0.0041692]
[1742134421611,0.01051607,82948.0,82947.0,0.0162242]
[1742134421815,0.253153,82954.0,82949.0,0.012055]
[1742134422017,0.253158,82952.0,82947.0,0.2553392]
[1742134422217,0.253166,82950.0,82947.0,0.0021692]
[1742134423452,0.241113,82949.0,82947.0,0.0001692]
[1742134423986,0.253168,82949.0,82947.0,0.0001692]
[1742134424467,0.241111,82950.0,82947.0,0.0001692]
[1742134424865,0.253166,82950.0,82947.0,0.0001692]
[1742134425067,0.012055,82948.0,82947.0,0.0001692]
[1742134425486,0.01883541,82948.0,82947.0,0.0001692]
[1742134431378,0.2532,82939.0,82934.0,0.25321]